Cogmind - Beta 12 *** ADVENTURER MODE // 2023.05.19 @ 19:10:15 // Winter2019/RPGLIKE Player: thykka Result: Destroyed by G-47 Trooper with Particle Gun Performance ------------- Evolutions (2) 1000 Regions Visited (5) 1000 Robots Destroyed (4) 20 Value Destroyed (114) 114 Prototype IDs (0) 0 Alien Tech Used (0) 0 Bonus (270) 270 TOTAL SCORE: 2404 Bonus ------- Pacifist 270 Cogmind --------- Core Integrity 0/600 Matter 217/300 Energy 250/250 System Corruption 0% Temperature Cool (9) Movement Rolling (100) Location -8/Materials Parts ------- > --- POWER (1) -------- Ion Engine > --- PROPULSION (1) --- Compact Wheel > --- UTILITY (1) ------ Targeting Computer > --- WEAPON (1) ------- Assault Rifle > --- INVENTORY (0) ---- (None) Peak State ------------ > --- POWER ------------ Ion Engine > --- PROPULSION ------- Compact Wheel > --- UTILITY ---------- Targeting Computer > --- WEAPON ----------- Assault Rifle > --- INVENTORY -------- (None) [Rating: 4] Favorites ----------- Power Ion Engine Engine Ion Engine Propulsion Compact Wheel Wheel Compact Wheel Utility Targeting Computer Processor Targeting Computer Weapon Assault Rifle Energy Gun Medium Laser Ballistic Gun Assault Rifle Build | -11 -10 -10 -10 -9 -8 ------- Run | Jun Mat Min Exi Min Mat Slots Evolved . | . . . . . . Power . | . . . . . . Propulsion . | . . . . . . Utility . | . . . . . . Weapon . | . . . . . . Parts Attached 8 | 6 1 . . . 1 Power 2 | 2 . . . . . Engine 2 | 2 . . . . . Core . | . . . . . . Reactor . | . . . . . . Propulsion 2 | 2 . . . . . Treads . | . . . . . . Leg . | . . . . . . Wheel 2 | 2 . . . . . Hover . | . . . . . . Flight . | . . . . . . Utility 1 | . 1 . . . . Device . | . . . . . . Storage . | . . . . . . Processor 1 | . 1 . . . . Hackware . | . . . . . . Protection . | . . . . . . Artifact . | . . . . . . Weapon 3 | 2 . . . . 1 Energy Gun 1 | 1 . . . . . Energy Cannon . | . . . . . . Ballistic Gun 2 | 1 . . . . 1 Ballistic Cannon . | . . . . . . Launcher . | . . . . . . Special Weapon . | . . . . . . Impact Weapon . | . . . . . . Slashing Weapon . | . . . . . . Piercing Weapon . | . . . . . . Special Melee Weapon . | . . . . . . Unidentified Prototypes . | . . . . . . Parts Lost . | . . . . . . Power . | . . . . . . Propulsion . | . . . . . . Utility . | . . . . . . Weapon . | . . . . . . Highest Loss Streak . | . . . . . . To Critical Strikes . | . . . . . . Average Slot Usage (%) 99 | . 90 100 100 100 100 Engine 25 | . 25 25 25 25 25 Wheel 25 | . 25 25 25 25 25 Processor 24 | . 15 25 25 25 25 Ballistic Gun 25 | . 25 25 25 25 25 Naked Turns . | . . . . . . Heaviest Build 7 | 7 7 7 7 7 7 Greatest Support 16 | 16 16 16 16 16 16 Greatest Overweight (x) 1 | 1 . . . . . Average Overweight (x) . | . . . . . . Largest Inventory Capacity . | . . . . . . Average Capacity . | . . . . . . Most Carried . | . . . . . . Average Carried . | . . . . . . Final Capacity . | . . . . . . Final Carried . | . . . . . . Class Distribution -------------------- 100% | Mutant Dominant Class ---------------- Mutant | -10/Materials Mutant | -10/Mines Mutant | -10/Exiles Mutant | -9/Mines Mutant | -8/Materials Resources | -11 -10 -10 -10 -9 -8 ----------- Run | Jun Mat Min Exi Min Mat Matter Collected 329 | 215 . . . . 114 Remotely . | . . . . . . Salvage Created 75 | . . . . . 75 Parts 7 | . . . . . 7 Haulers Intercepted . | . . . . . . Recyclers Shooed . | . . . . . . Parts Field Recycled . | . . . . . . Retrieved Matter . | . . . . . . Parts Self-Destructed . | . . . . . . Prevented . | . . . . . . Kills | -11 -10 -10 -10 -9 -8 ------- Run | Jun Mat Min Exi Min Mat Combat Hostiles Destroyed 4 | . . . . . 4 Guns 4 | . . . . . 4 Classes Destroyed 2 | . . . . . 2 Swarmer 2 | . . . . . 2 Grunt 2 | . . . . . 2 Best Kill Streak 2 | . . . . . 2 Combat Bots Only 2 | . . . . . 2 Max Kills in Single Turn 1 | . . . . . 1 Gunslinging . | . . . . . . Exploded . | . . . . . . Melee . | . . . . . . Uniques/NPCs Destroyed . | . . . . . . Combat | -11 -10 -10 -10 -9 -8 -------- Run | Jun Mat Min Exi Min Mat Damage Taken 713 | . . . . . 713 Core 600 | . . . . . 600 Absorbed by Shields . | . . . . . . Redirected to Core 347 | . . . . . 347 Core Remaining (%) 100 | 100 . . . 100 . Volleys Fired 45 | 1 . . . . 44 Largest 1 | 1 . . . . 1 Hottest 50 | 50 . . . . 20 Shots Fired 45 | 1 . . . . 44 Gun 45 | 1 . . . . 44 Cannon . | . . . . . . Launcher . | . . . . . . Special . | . . . . . . Kinetic 44 | . . . . . 44 Thermal 1 | 1 . . . . . Explosive . | . . . . . . Electromagnetic . | . . . . . . Robot Hit Streak 14 | 1 . . . . 14 Robot Miss Streak 2 | . . . . . 2 Penetration Max . | . . . . . . Secondary Targets . | . . . . . . Shots Hit Robots 39 | 1 . . . . 38 Core Hits 9 | . . . . . 9 Critical Kills . | . . . . . . Critical Parts Destroyed . | . . . . . . Critical Strikes . | . . . . . . Melee Attacks . | . . . . . . Impact . | . . . . . . Slashing . | . . . . . . Piercing . | . . . . . . Sneak Attacks . | . . . . . . Combat Hostiles . | . . . . . . Follow-up Attacks . | . . . . . . Damage Inflicted 469 | 12 . . . . 457 Guns 469 | 12 . . . . 457 Cannons . | . . . . . . Explosions . | . . . . . . Melee . | . . . . . . Ramming . | . . . . . . Kinetic 457 | . . . . . 457 Thermal 12 | 12 . . . . . Explosive . | . . . . . . Electromagnetic . | . . . . . . Impact . | . . . . . . Slashing . | . . . . . . Piercing . | . . . . . . Highest Corruption . | . . . . . . Average Corruption . | . . . . . . Corruption Purged . | . . . . . . Corruption Blocked . | . . . . . . Overload Shots . | . . . . . . Overflow Damage . | . . . . . . Projectiles . | . . . . . . Explosions . | . . . . . . Melee . | . . . . . . Knockbacks . | . . . . . . Impact . | . . . . . . Kinetic . | . . . . . . Secondary . | . . . . . . Self-Inflicted Damage . | . . . . . . Shots . | . . . . . . Rammed . | . . . . . . Targets Rammed . | . . . . . . Kicked . | . . . . . . Crushed . | . . . . . . Highest Temperature 17 | 10 . . . . 17 Average Temperature 9 | 7 . . . . 12 Received Heat Transfer 414 | . . . . . 414 Siege Activations . | . . . . . . Robots Corrupted . | . . . . . . Combat Hostiles . | . . . . . . Parts Fried . | . . . . . . Impact Corruptions . | . . . . . . Robots Melted . | . . . . . . Combat Hostiles . | . . . . . . Parts Melted . | . . . . . . Heat Transferred 37 | 37 . . . . . Parts Sabotaged . | . . . . . . Parts Stolen . | . . . . . . Parts Stripped . | . . . . . . Power Chain Reactions . | . . . . . . Missiles Intercepted . | . . . . . . Alert | -11 -10 -10 -10 -9 -8 ------- Run | Jun Mat Min Exi Min Mat Peak Influence 253 | . . . . . 253 Initial . | . . . . . . Average 27 | . . . . . 77 Maximum Alert Level 1 | . . . . . 1 Low Security (%) 96 | 100 100 100 . 100 89 Level 1 3 | . . . . . 10 Level 2 . | . . . . . . Level 3 . | . . . . . . Level 4 . | . . . . . . Level 5 . | . . . . . . High Security . | . . . . . . Max Security . | . . . . . . Squads Dispatched 2 | . . . . . 2 Investigation . | . . . . . . Extermination . | . . . . . . Reinforcement 2 | . . . . . 2 Assault . | . . . . . . Garrison . | . . . . . . Intercept . | . . . . . . Searches Triggered . | . . . . . . Construction Impeded . | . . . . . . Haulers Reinforced . | . . . . . . Active Scanning Responses . | . . . . . . Cargo Convoy Interrupts . | . . . . . . Stealth | -11 -10 -10 -10 -9 -8 --------- Run | Jun Mat Min Exi Min Mat Distress Signals 4 | . . . . . 4 Communications Jammed . | . . . . . . Distress Signals . | . . . . . . Times Spotted 22 | . . . . . 22 Peak Tracking Total 14 | . . . . . 14 Tactical Retreats 3 | . . . . . 3 Traps | -11 -10 -10 -10 -9 -8 ------- Run | Jun Mat Min Exi Min Mat Traps Triggered . | . . . . . . Indirectly . | . . . . . . Trap Hack Attempts . | . . . . . . Triggered . | . . . . . . Disarmed . | . . . . . . Reprogrammed . | . . . . . . Reused . | . . . . . . Traps Extracted . | . . . . . . Installed . | . . . . . . Triggered . | . . . . . . Machines | -11 -10 -10 -10 -9 -8 ---------- Run | Jun Mat Min Exi Min Mat Machines Disabled . | . . . . . . Max in Single Turn . | . . . . . . Machines Repaired . | . . . . . . Machines Sabotaged . | . . . . . . Overloaded Fab Kills . | . . . . . . Hacking | -11 -10 -10 -10 -9 -8 --------- Run | Jun Mat Min Exi Min Mat Machines Accessed 2 | . . . 1 . 1 Terminals 1 | . . . . . 1 Fabricators . | . . . . . . Repair Stations . | . . . . . . Recycling Units . | . . . . . . Scanalyzers . | . . . . . . Garrison Access . | . . . . . . Total Hacks 5 | . . . 4 . 1 Successful 5 | . . . 4 . 1 Failed . | . . . . . . Catastrophic . | . . . . . . Database Lockouts . | . . . . . . Manual 2 | . . . 1 . 1 Terminals 1 | . . . . . 1 Fabricators . | . . . . . . Repair Stations . | . . . . . . Recycling Units . | . . . . . . Scanalyzers . | . . . . . . Garrison Access . | . . . . . . Terminal Hacks 5 | . . . 4 . 1 Record 4 | . . . 4 . . Level Access Points 1 | . . . . . 1 Fabricator Hacks . | . . . . . . Repair Station Hacks . | . . . . . . Recycling Unit Hacks . | . . . . . . Scanalyzer . | . . . . . . Garrison Access Hacks . | . . . . . . Unauthorized Hacks . | . . . . . . Terminals . | . . . . . . Fabricators . | . . . . . . Repair Stations . | . . . . . . Recycling Units . | . . . . . . Scanalyzers . | . . . . . . Garrison Access . | . . . . . . Data Cores Recovered . | . . . . . . Used . | . . . . . . Hacking Detections . | . . . . . . Full Trace Events . | . . . . . . Feedback Events . | . . . . . . Feedback Blocked . | . . . . . . Robot Schematics Acquired . | . . . . . . Robots Built . | . . . . . . Authchips . | . . . . . . Time . | . . . . . . Total Robot Build Rating . | . . . . . . Part Schematics Acquired . | . . . . . . Parts Built . | . . . . . . Authchips . | . . . . . . Time . | . . . . . . Total Part Build Rating . | . . . . . . Parts Repaired . | . . . . . . Time . | . . . . . . Parts Recycled . | . . . . . . Recycled Matter . | . . . . . . Retrieved Matter . | . . . . . . Retrieved Components . | . . . . . . Parts Scanalyzed . | . . . . . . Part Schematics Acquired . | . . . . . . Parts Damaged . | . . . . . . Bothacking | -11 -10 -10 -10 -9 -8 ------------ Run | Jun Mat Min Exi Min Mat Used RIF Installer . | . . . . . . Robots Hacked . | . . . . . . Non-combat . | . . . . . . Combat . | . . . . . . Robot Hacks Applied . | . . . . . . Relay Couplers Released . | . . . . . . Fabnet Peak Effective % . | . . . . . . Robots Rewired . | . . . . . . Allies Hacked . | . . . . . . Hacks Repelled . | . . . . . . Allies | -11 -10 -10 -10 -9 -8 -------- Run | Jun Mat Min Exi Min Mat Total Allies . | . . . . . . Largest Group . | . . . . . . Highest-Rated Group . | . . . . . . Highest-Rated Ally . | . . . . . . Total Orders . | . . . . . . Ally Attacks . | . . . . . . Total Damage . | . . . . . . Kills . | . . . . . . Allies Corrupted . | . . . . . . Allies Melted . | . . . . . . Intel | -11 -10 -10 -10 -9 -8 ------- Run | Jun Mat Min Exi Min Mat Robot Analysis Total . | . . . . . . Derelict Logs Recovered . | . . . . . . Drone Launches . | . . . . . . Drone Recoveries . | . . . . . . Exploration | -11 -10 -10 -10 -9 -8 ------------- Run | Jun Mat Min Exi Min Mat Turns Passed 847 | 73 47 27 127 319 254 Spaces Moved 730 | 67 46 28 128 320 141 Core 12 | 12 . . . . . Treads . | . . . . . . Legs . | . . . . . . Wheels 718 | 55 46 28 128 320 141 Hover . | . . . . . . Flight . | . . . . . . Fastest Speed 50 | 50 100 100 100 100 100 Average Speed 99 | 91 100 100 100 100 100 Slowest Speed 100 | 100 100 100 100 100 100 Overloaded Moves . | . . . . . . Propulsion Burnouts . | . . . . . . Robots Hopped . | . . . . . . Cave-ins Triggered . | . . . . . . Exploration Rate (%) 30 | 5 18 8 49 80 23 Regions Visited 5 Branch Regions 3 Pre-discovered Areas 2 | . . . 1 1 . Known Exits Taken . | . . . . . . Unknown Exits Taken 5 | 1 1 1 1 1 . Scrap Searched . | . . . . . . Spaces Dug . | . . . . . . Terrain Destroyed . | . . . . . . Melee . | . . . . . . Projectile . | . . . . . . AOE . | . . . . . . Terrain Rammed . | . . . . . . Walls Destroyed . | . . . . . . Machines Disabled . | . . . . . . Actions | -11 -10 -10 -10 -9 -8 --------- Run | Jun Mat Min Exi Min Mat Total 805 | 76 46 27 127 319 210 Wait 23 | . . . . . 23 Move 725 | 66 45 27 127 319 141 Hop . | . . . . . . Pick Up . | . . . . . . Fast Attach 8 | 6 1 . . . 1 Attach . | . . . . . . Detach . | . . . . . . Swap . | . . . . . . Drop 4 | 3 . . . . 1 Fire 45 | 1 . . . . 44 Melee . | . . . . . . Ram . | . . . . . . Kick . | . . . . . . Crush . | . . . . . . Escape Stasis . | . . . . . . Rewire . | . . . . . . Trap . | . . . . . . Miscellaneous . | . . . . . . Route ------- -11/Junkyard -10/Materials -10/Mines -10/Exiles -9/Mines -8/Materials (discovered 3 exits: Fac x3) History --------- Turn | Location | Event 19 | -11/Junkyard | Discovered new exit (range 16) 74 | -11/Junkyard | Entered Materials 115 | -10/Materials | Discovered new exit (range 7) 121 | -10/Materials | Entered Mines 144 | -10/Mines | Deemed a non-threat by the Exiles lab entrance 144 | -10/Mines | Discovered new exit (range 5) 148 | -10/Mines | Entered Exiles 177 | -10/Exiles | Met 8R-AWN 191 | -10/Exiles | Met EX-HEX 230 | -10/Exiles | Met EX-DEC 235 | -10/Exiles | Learned location of Zion (-6) 264 | -10/Exiles | Discovered new exit (range 14) 275 | -10/Exiles | Entered Mines 277 | -9/Mines | Reached level 2 307 | -9/Mines | Build established: Mutant 487 | -9/Mines | Learned location of Storage (-9) 592 | -9/Mines | Discovered new exit (range 3) 594 | -9/Mines | Entered Materials 596 | -8/Materials | Reached level 3 596 | -8/Materials | Reached level 4 596 | -8/Materials | Reached level 5 596 | -8/Materials | Reached level 6 679 | -8/Materials | Identified exit to Factory 786 | -8/Materials | Core integrity fell below 50% 813 | -8/Materials | Core integrity fell below 20% 848 | -8/Materials | Destroyed by G-47 Trooper with Particle Gun Last Messages --------------- 00679_ Current location identified: Materials >>Access(Main) Found 3 level access points to Factory: (52,15) (17,91) (89,90) Map updated. 00694_ Dropped Assault Rifle. 00695_ Acquired Assault Rifle. 00708_ G-47 Trooper destroyed. 00711_ Acquired 57 matter. 00725_ W-25 Informer distress signal alerts nearby ally. 00745_ R-06 Scavenger collects Aluminum Leg. 00755_ O-16 Technician: "IFF HANDSHAKE FAILED. SECURING TERMINAL." 00761_ ALERT: Hostiles spotted, dispatching reinforcements to Terminal M005. 00774_ K-01 Serf collects debris. 00791_ S-10 Pest destroyed. 00791_ K-01 Serf collects debris. 00822_ S-10 Pest destroyed. Map ----- +----------------------------------------------------+ | | | | | | | | | | | | | | | | | | | | | | | ?????????????????????????????????????????????????? | | ?????????????????????????????????????????????????? | | ?????????????????????????????????????????????????? | | ?????????????????????????????????????????????????? | | ?????????????????????????????????????????????????? | | ?????????????????????????????????????????????????? | | ?????????????????????????????????????????????????? | | ????????????????????????######???????????????????? | | ????????????????????????# #???????????????????? | | ????????????????????????# ! #???????????????????? | | ????????????????????????# #???????????????????? | | ????????????????????????# #???????????????????? | | ????????????????????????# #???????????????????? | | ????????????????????????# #???????????????????? | | ??????????????????????###@* #???????????????????? | | ???????????????########%g%% #?